[Event "Turkish Second League 2019"]
[Site "Konya"]
[Date "2019.07.26"]
[Round "7"]
[White "Temizkan, Denizcan"]
[Black "Tofan, Ibrahim"]
[Result "0-1"]
[ECO "D12"]
[WhiteElo "2202"]
[BlackElo "2043"]
[Annotator "NA"]
[PlyCount "110"]
[EventDate "2019.07.22"]
[EventType "team-tourn"]
[EventCountry "TUR"]
[SourceTitle "playchess.com"]
[Source "ChessBase"]
[SourceQuality "1"]
[TimeControl "5400+30"]

1. d4 {[%emt 0:00:30]} d5 {[%emt 0:00:30]} 2. c4 {[%emt 0:00:30]} c6 {[%emt 0:00:00]} 3. e3 {[%emt 0:00:00]} Nf6 {[%emt 0:00:00]} 4. Nf3 {[%emt 0:00:00]} Bf5 {[%emt 0:00:30]} 5. Nc3 {[%emt 0:00:30]} e6 {[%emt 0:00:30]} 6. Bd3 {[%emt 0:00:30]} Bxd3 {[%emt 0:00:30]} 7. Qxd3 {[%emt 0:00:30]} Nbd7 {[%emt 0:00:00]} 8. O-O {[%emt 0:00:30]} Be7 {[%emt 0:00:00]} 9. Rd1 {[%emt 0:18:30]} O-O {[%emt 0:05:30]} 10. e4 {[%emt 0:04:30]} dxe4 {[%emt 0:00:30]} 11. Nxe4 {[%emt 0:00:30]} Qc7 {[%emt 0:01:30]} 12. Bg5 {[%emt 0:04:30]} Rfe8 {[%emt 0:09:30]} 13. Bh4 {[%emt 0:07:30]} Nxe4 {[%emt 0:01:30]} 14. Qxe4 {[%emt 0:00:30]} Bxh4 {[%emt 0:00:30]} 15. Qxh4 {[%emt 0:00:00]} Qd8 {[%emt 0:00:30]} 16. Qf4 {[%emt 0:02:00]} Qe7 {[%emt 0:03:30]} 17. Re1 {[%emt 0:01:30]} Rad8 {[%emt 0:02:30]} 18. Re3 {[%emt 0:02:30]} Nf8 {[%emt 0:03:30]} 19. Rae1 {[%emt 0:00:30]} Qf6 {[%emt 0:03:30]} 20. Qc7 {[%emt 0:07:30]} Rd7 {[%emt 0:07:30]} 21. Qa5 {[%emt 0:00:30]} a6 {[%emt 0:00:30]} 22. g3 {[%emt 0:13:30]} Rc8 {[%emt 0:16:30]} 23. Ne5 {[%emt 0:05:30]} Qd8 {[%emt 0:01:30]} 24. Qb4 {[%emt 0:00:00]} a5 {[%emt 0:06:30]} 25. Qb3 {[%emt 0:01:00]} Rxd4 {[%emt 0:01:30]} 26. Qxb7 {[%emt 0:00:00]} Qc7 {[%emt 0:02:30]} 27. Qa6 {[%emt 0:03:00]} Nd7 {[%emt 0:09:30]} 28. Nf3 {[%emt 0:03:30]} Nc5 {[%emt 0:00:30]} 29. Qxc8+ {[%emt 0:00:00]} Qxc8 {[%emt 0:00:00]} 30. Nxd4 {[%emt 0:00:00]} Qa6 {[%emt 0:01:00]} 31. Rc1 {[%emt 0:03:30]} g6 {[%emt 0:02:30]} 32. Nb3 {[%emt 0:01:30]} Nd7 {[%emt 0:02:02]} 33. Nd2 {[%emt 0:02:41]} Kg7 {[%emt 0:00:52]} 34. Nf3 {[%emt 0:02:13]} h5 {[%emt 0:01:41]} 35. b3 {[%emt 0:01:37]} Nf6 {[%emt 0:02:45]} 36. Ne5 {[%emt 0:00:52]} c5 {[%emt 0:00:42]} 37. Rd1 {[%emt 0:01:24]} a4 {[%emt 0:00:11]} 38. h3 {[%emt 0:03:13]} axb3 {[%emt 0:00:39]} 39. axb3 {[%emt 0:00:06]} Qa2 {[%emt 0:00:46]} 40. Nd7 {[%emt 0:03:33]} Qc2 {[%emt 0:00:43]} 41. Rdd3 {[%emt 0:00:01]} Ne4 {[%emt 0:01:13]} 42. Rxe4 {[%emt 0:02:11]} Qxd3 {[%emt 0:02:49]} 43. Nxc5 {[%emt 0:00:06]} Qd6 {[%emt 0:01:15]} 44. b4 {[%emt 0:00:42]} e5 {[%emt 0:00:07]} 45. Re3 {[%emt 0:01:49]} Qd4 {[%emt 0:01:38]} 46. Re4 {[%emt 0:00:17]} Qa1+ {[%emt 0:01:17]} 47. Kg2 {[%emt 0:00:56]} f5 {[%emt 0:00:03]} 48. Re3 {[%emt 0:00:00]} g5 {[%emt 0:02:56]} 49. b5 {[%emt 0:01:47]} f4 {[%emt 0:00:47]} 50. Rb3 {[%emt 0:00:31]} Qa8+ {[%emt 0:00:32]} 51. Kh2 {[%emt 0:03:00]} Qc8 {[%emt 0:00:27]} 52. Nd7 {[%emt 0:03:28]} Qxd7 {[%emt 0:01:26]} 53. b6 {[%emt 0:00:06]} Qd4 {[%emt 0:00:25]} 54. Kg2 {[%emt 0:00:41]} Qxc4 {[%emt 0:00:30]} 55. Rb2 {[%emt 0:00:00]} f3+ {[%emt 0:00:18]} 0-1

[Event "Turkish Second League 2019"]
[Site "Konya"]
[Date "2019.07.26"]
[Round "7"]
[White "Kara, Yanki"]
[Black "Ozates, Tuna"]
[Result "0-1"]
[ECO "D47"]
[WhiteElo "2193"]
[BlackElo "2218"]
[Annotator "NA"]
[PlyCount "42"]
[EventDate "2019.07.22"]
[EventType "team-tourn"]
[EventCountry "TUR"]
[SourceTitle "playchess.com"]
[Source "ChessBase"]
[SourceQuality "1"]
[TimeControl "5400+30"]

1. d4 {[%emt 0:00:30]} d5 {[%emt 0:00:30]} 2. Nf3 {[%emt 0:00:30]} Nf6 {[%emt 0:00:00]} 3. c4 {[%emt 0:00:30]} c6 {[%emt 0:00:00]} 4. Nc3 {[%emt 0:00:00]} e6 {[%emt 0:00:00]} 5. e3 {[%emt 0:01:00]} Nbd7 {[%emt 0:00:00]} 6. Bd3 {[%emt 0:00:00]} dxc4 {[%emt 0:00:30]} 7. Bxc4 {[%emt 0:00:00]} b5 {[%emt 0:00:00]} 8. Bd3 {[%emt 0:02:30]} Bd6 {[%emt 0:00:00]} 9. e4 {[%emt 0:00:30]} e5 {[%emt 0:00:00]} 10. Ne2 {[%emt 0:02:30]} O-O {[%emt 0:10:00]} 11. O-O {[%emt 0:02:30]} a6 {[%emt 0:04:30]} 12. h3 {[%emt 0:09:30]} c5 {[%emt 0:11:30]} 13. dxe5 {[%emt 0:03:30]} Nxe5 {[%emt 0:04:30]} 14. Nxe5 {[%emt 0:01:30]} Bxe5 {[%emt 0:00:30]} 15. f4 {[%emt 0:00:00]} Bd4+ {[%emt 0:00:00]} 16. Kh2 {[%emt 0:02:00]} Bb7 {[%emt 0:12:00]} 17. Ng3 {[%emt 0:06:30]} h5 {[%emt 0:13:30]} 18. e5 {[%emt 0:03:30]} Ng4+ {[%emt 0:00:30]} 19. Kh1 {[%emt 0:00:30]} Qh4 {[%emt 0:00:30]} 20. Ne4 {[%emt 0:00:30]} Bxe4 {[%emt 0:01:30]} 21. Bxe4 {[%emt 0:00:30]} Qg3 {[%emt 0:00:00]} 0-1

[Event "Turkish Second League 2019"]
[Site "Konya"]
[Date "2019.07.26"]
[Round "7"]
[White "Demirbag, Alihan"]
[Black "Oztekin, Kerem Can"]
[Result "1/2-1/2"]
[ECO "B23"]
[WhiteElo "2087"]
[BlackElo "1933"]
[Annotator "NA"]
[PlyCount "60"]
[EventDate "2019.07.22"]
[EventType "team-tourn"]
[EventCountry "TUR"]
[SourceTitle "playchess.com"]
[Source "ChessBase"]
[SourceQuality "1"]
[TimeControl "5400+30"]

1. e4 {[%emt 0:01:30]} c5 {[%emt 0:00:30]} 2. Nc3 {[%emt 0:00:30]} a6 {[%emt 0:00:30]} 3. g3 {[%emt 0:00:30]} b5 {[%emt 0:01:30]} 4. Bg2 {[%emt 0:00:30]} Bb7 {[%emt 0:00:00]} 5. d3 {[%emt 0:01:30]} e6 {[%emt 0:00:00]} 6. Nh3 {[%emt 0:04:30]} b4 {[%emt 0:01:30]} 7. Ne2 {[%emt 0:00:30]} d5 {[%emt 0:04:30]} 8. e5 {[%emt 0:03:30]} Nc6 {[%emt 0:13:30]} 9. f4 {[%emt 0:00:00]} f6 {[%emt 0:12:30]} 10. O-O {[%emt 0:03:00]} Qc7 {[%emt 0:10:30]} 11. f5 {[%emt 0:05:30]} fxe5 {[%emt 0:08:30]} 12. fxe6 {[%emt 0:01:30]} O-O-O {[%emt 0:03:30]} 13. Bg5 {[%emt 0:25:30]} Be7 {[%emt 0:02:30]} 14. c3 {[%emt 0:08:30]} Nf6 {[%emt 0:03:30]} 15. Rc1 {[%emt 0:09:30]} h6 {[%emt 0:07:30]} 16. Bxf6 {[%emt 0:00:00]} gxf6 {[%emt 0:03:30]} 17. cxb4 {[%emt 0:01:00]} cxb4 {[%emt 0:01:30]} 18. Qb3 {[%emt 0:03:30]} Qb6+ {[%emt 0:01:30]} 19. Kh1 {[%emt 0:01:30]} Kb8 {[%emt 0:00:30]} 20. Nhg1 {[%emt 0:09:59]} Na5 {[%emt 0:04:02]} 21. Qa4 {[%emt 0:00:43]} Bc6 {[%emt 0:04:14]} 22. Qd1 {[%emt 0:00:15]} Bb7 {[%emt 0:00:13]} 23. Qa4 {[%emt 0:00:21]} Bc6 {[%emt 0:00:13]} 24. Qd1 {[%emt 0:00:04]} Bb7 {[%emt 0:00:51]} 25. Qa4 {[%emt 0:01:16]} Bc6 {[%emt 0:00:47]} 26. Qd1 {[%emt 0:00:01]} Bb7 {[%emt 0:03:36]} 27. Qa4 {[%emt 0:00:02]} Bc6 {[%emt 0:00:27]} 28. Qd1 {[%emt 0:00:00]} Bb7 {[%emt 0:00:12]} 29. Qa4 {[%emt 0:00:01]} Bc6 {[%emt 0:00:13]} 30. Qd1 {[%emt 0:00:04]} Bb7 {[%emt 0:00:00]} 1/2-1/2

[Event "Turkish Second League 2019"]
[Site "Konya"]
[Date "2019.07.26"]
[Round "7"]
[White "Duman, Aydin"]
[Black "Ozsakallioglu, Akin"]
[Result "1-0"]
[ECO "B52"]
[WhiteElo "2059"]
[BlackElo "1901"]
[Annotator "NA"]
[PlyCount "85"]
[EventDate "2019.07.22"]
[EventType "team-tourn"]
[EventCountry "TUR"]
[SourceTitle "playchess.com"]
[Source "ChessBase"]
[SourceQuality "1"]
[TimeControl "5400+30"]

1. e4 {[%emt 0:00:30]} c5 {[%emt 0:00:30]} 2. Nf3 {[%emt 0:00:00]} d6 {[%emt 0:00:30]} 3. Bb5+ {[%emt 0:00:00]} Bd7 {[%emt 0:00:00]} 4. Bxd7+ {[%emt 0:00:30]} Qxd7 {[%emt 0:00:00]} 5. O-O {[%emt 0:00:00]} Nc6 {[%emt 0:00:00]} 6. c3 {[%emt 0:00:00]} Nf6 {[%emt 0:00:00]} 7. d4 {[%emt 0:00:00]} cxd4 {[%emt 0:00:30]} 8. cxd4 {[%emt 0:00:00]} g6 {[%emt 0:00:30]} 9. Nc3 {[%emt 0:00:30]} Bg7 {[%emt 0:00:30]} 10. Bg5 {[%emt 0:00:30]} h6 {[%emt 0:01:30]} 11. Bh4 {[%emt 0:00:00]} O-O {[%emt 0:04:30]} 12. Qa4 {[%emt 0:03:00]} g5 {[%emt 0:04:30]} 13. Bg3 {[%emt 0:00:30]} Nh5 {[%emt 0:00:30]} 14. Rfd1 {[%emt 0:07:30]} Nxg3 {[%emt 0:00:30]} 15. hxg3 {[%emt 0:00:30]} Rfd8 {[%emt 0:11:30]} 16. Rac1 {[%emt 0:00:30]} Nb8 {[%emt 0:02:30]} 17. d5 {[%emt 0:09:30]} Qxa4 {[%emt 0:10:30]} 18. Nxa4 {[%emt 0:00:30]} Na6 {[%emt 0:00:30]} 19. Nd4 {[%emt 0:01:30]} Bxd4 {[%emt 0:00:30]} 20. Rxd4 {[%emt 0:00:30]} Rac8 {[%emt 0:00:00]} 21. Rxc8 {[%emt 0:04:30]} Rxc8 {[%emt 0:00:00]} 22. Nc3 {[%emt 0:00:30]} Kf8 {[%emt 0:02:30]} 23. Kf1 {[%emt 0:01:30]} Ke8 {[%emt 0:01:30]} 24. Ke2 {[%emt 0:01:30]} Kd7 {[%emt 0:00:30]} 25. Rd1 {[%emt 0:00:30]} Rh8 {[%emt 0:02:30]} 26. Rh1 {[%emt 0:04:30]} Nc7 {[%emt 0:01:30]} 27. f4 {[%emt 0:01:30]} f6 {[%emt 0:02:30]} 28. Nd1 {[%emt 0:07:30]} Ne8 {[%emt 0:00:30]} 29. Ne3 {[%emt 0:01:30]} Ng7 {[%emt 0:00:30]} 30. fxg5 {[%emt 0:10:30]} fxg5 {[%emt 0:00:30]} 31. g4 {[%emt 0:00:30]} e6 {[%emt 0:03:30]} 32. Rf1 {[%emt 0:00:30]} Ke7 {[%emt 0:01:30]} 33. dxe6 {[%emt 0:02:30]} Kxe6 {[%emt 0:00:00]} 34. Nd5 {[%emt 0:00:30]} Ne8 {[%emt 0:01:00]} 35. Kd3 {[%emt 0:00:30]} h5 {[%emt 0:00:30]} 36. gxh5 {[%emt 0:01:30]} Rxh5 {[%emt 0:00:30]} 37. Rf8 {[%emt 0:00:00]} Ng7 {[%emt 0:00:30]} 38. Kd4 {[%emt 0:00:00]} Rh6 {[%emt 0:00:30]} 39. Rb8 {[%emt 0:02:30]} Rh1 {[%emt 0:00:00]} 40. Rxb7 {[%emt 0:00:30]} Rd1+ {[%emt 0:00:00]} 41. Kc3 {[%emt 0:00:00]} Ke5 {[%emt 0:00:30]} 42. Rxg7 {[%emt 0:00:00]} Kxe4 {[%emt 0:00:00]} 43. Rxg5 {[%emt 0:00:30]} 1-0

[Event "Turkish Second League 2019"]
[Site "Konya"]
[Date "2019.07.26"]
[Round "7"]
[White "Ozdemir, Serhan Berat"]
[Black "Abdullahoglu, Diren Can"]
[Result "1-0"]
[ECO "B00"]
[WhiteElo "1985"]
[BlackElo "1889"]
[Annotator "NA"]
[PlyCount "99"]
[EventDate "2019.07.22"]
[EventType "team-tourn"]
[EventCountry "TUR"]
[SourceTitle "playchess.com"]
[Source "ChessBase"]
[SourceQuality "1"]
[TimeControl "5400+30"]

1. e4 {[%emt 0:00:30]} c5 {[%emt 0:01:30]} 2. Nf3 {[%emt 0:00:00]} e6 {[%emt 0:00:00]} 3. c3 {[%emt 0:00:00]} b6 {[%emt 0:01:00]} 4. d4 {[%emt 0:01:30]} Bb7 {[%emt 0:01:30]} 5. Bd3 {[%emt 0:02:30]} Qc7 {[%emt 0:05:30]} 6. O-O {[%emt 0:00:30]} g6 {[%emt 0:04:30]} 7. Re1 {[%emt 0:10:30]} Bg7 {[%emt 0:05:30]} 8. e5 {[%emt 0:00:00]} Ne7 {[%emt 0:03:30]} 9. Na3 {[%emt 0:00:00]} a6 {[%emt 0:00:30]} 10. Bg5 {[%emt 0:03:30]} Nc8 {[%emt 0:11:30]} 11. Nc4 {[%emt 0:04:30]} b5 {[%emt 0:02:30]} 12. Ne3 {[%emt 0:00:30]} h6 {[%emt 0:03:30]} 13. Bh4 {[%emt 0:00:30]} g5 {[%emt 0:09:30]} 14. Bg3 {[%emt 0:00:00]} c4 {[%emt 0:05:30]} 15. Bc2 {[%emt 0:01:00]} Nb6 {[%emt 0:01:30]} 16. h4 {[%emt 0:00:30]} gxh4 {[%emt 0:01:30]} 17. Nxh4 {[%emt 0:00:30]} h5 {[%emt 0:01:30]} 18. Qe2 {[%emt 0:04:30]} Kd8 {[%emt 0:10:30]} 19. Rad1 {[%emt 0:09:30]} Bf8 {[%emt 0:03:30]} 20. d5 {[%emt 0:03:30]} Kc8 {[%emt 0:03:30]} 21. Qf3 {[%emt 0:03:30]} Bc5 {[%emt 0:02:30]} 22. Qf6 {[%emt 0:00:30]} Qd8 {[%emt 0:01:41]} 23. dxe6 {[%emt 0:08:30]} fxe6 {[%emt 0:01:10]} 24. Ng6 {[%emt 0:01:30]} Rg8 {[%emt 0:02:07]} 25. Bh4 {[%emt 0:01:30]} Qe8 {[%emt 0:01:03]} 26. b4 {[%emt 0:03:30]} Bf8 {[%emt 0:02:10]} 27. a4 {[%emt 0:04:30]} Kc7 {[%emt 0:02:22]} 28. a5 {[%emt 0:03:30]} Nc8 {[%emt 0:00:42]} 29. Rd2 {[%emt 0:05:30]} Bh6 {[%emt 0:04:30]} 30. g3 {[%emt 0:06:30]} Bxe3 {[%emt 0:01:54]} 31. Rxe3 {[%emt 0:01:30]} Nc6 {[%emt 0:01:05]} 32. Re1 {[%emt 0:00:30]} Nd8 {[%emt 0:02:57]} 33. Red1 {[%emt 0:01:30]} Bc6 {[%emt 0:00:01]} 34. Nf4 {[%emt 0:00:46]} Qf7 {[%emt 0:02:51]} 35. Bg6 {[%emt 0:00:46]} Qxf6 {[%emt 0:02:13]} 36. exf6 {[%emt 0:00:10]} e5 {[%emt 0:00:00]} 37. f7 {[%emt 0:00:39]} Nxf7 {[%emt 0:00:06]} 38. Bxf7 {[%emt 0:00:09]} Rf8 {[%emt 0:00:43]} 39. Nd5+ {[%emt 0:00:30]} Kb7 {[%emt 0:00:23]} 40. Bxh5 {[%emt 0:00:30]} Rh8 {[%emt 0:00:41]} 41. Bf3 {[%emt 0:00:00]} e4 {[%emt 0:00:19]} 42. Bxe4 {[%emt 0:01:00]} Nd6 {[%emt 0:00:30]} 43. Bg2 {[%emt 0:00:00]} Nf5 {[%emt 0:00:34]} 44. Ne7 {[%emt 0:00:00]} Bxg2 {[%emt 0:00:49]} 45. Rxd7+ {[%emt 0:00:30]} Kb8 {[%emt 0:00:19]} 46. Kxg2 {[%emt 0:00:30]} Nxe7 {[%emt 0:01:04]} 47. Bxe7 {[%emt 0:00:30]} Ra7 {[%emt 0:00:00]} 48. Rxa7 {[%emt 0:00:00]} Kxa7 {[%emt 0:00:16]} 49. Rd7+ {[%emt 0:00:00]} Kb8 {[%emt 0:00:30]} 50. Rd8+ {[%emt 0:00:00]} 1-0

[Event "Turkish Second League 2019"]
[Site "Konya"]
[Date "2019.07.26"]
[Round "7"]
[White "Yigit, Ahmet Yasir"]
[Black "Dinke, Abdullah"]
[Result "1-0"]
[ECO "C17"]
[WhiteElo "1962"]
[BlackElo "1870"]
[Annotator "NA"]
[PlyCount "65"]
[EventDate "2019.07.22"]
[EventType "team-tourn"]
[EventCountry "TUR"]
[SourceTitle "playchess.com"]
[Source "ChessBase"]
[SourceQuality "1"]
[TimeControl "5400+30"]

1. e4 {[%emt 0:00:30]} e6 {[%emt 0:01:30]} 2. d4 {[%emt 0:00:30]} d5 {[%emt 0:00:00]} 3. Nc3 {[%emt 0:00:00]} Bb4 {[%emt 0:00:00]} 4. e5 {[%emt 0:00:00]} c5 {[%emt 0:00:00]} 5. Bd2 {[%emt 0:00:00]} Ne7 {[%emt 0:00:00]} 6. f4 {[%emt 0:01:00]} Nf5 {[%emt 0:05:30]} 7. Nf3 {[%emt 0:00:30]} cxd4 {[%emt 0:07:30]} 8. Nb5 {[%emt 0:02:30]} Ne3 {[%emt 0:00:30]} 9. Qc1 {[%emt 0:02:30]} Bc5 {[%emt 0:01:30]} 10. Nbxd4 {[%emt 0:04:30]} Nxf1 {[%emt 0:00:00]} 11. Kxf1 {[%emt 0:00:30]} O-O {[%emt 0:02:00]} 12. g3 {[%emt 0:03:30]} Nc6 {[%emt 0:00:30]} 13. c3 {[%emt 0:00:30]} Bd7 {[%emt 0:00:30]} 14. Be3 {[%emt 0:01:30]} Be7 {[%emt 0:01:30]} 15. Kg2 {[%emt 0:01:30]} a6 {[%emt 0:00:30]} 16. h4 {[%emt 0:00:30]} Qc7 {[%emt 0:00:00]} 17. Qd2 {[%emt 0:07:30]} Rac8 {[%emt 0:03:00]} 18. Rae1 {[%emt 0:02:30]} b5 {[%emt 0:05:30]} 19. a3 {[%emt 0:02:30]} Na5 {[%emt 0:01:30]} 20. Bf2 {[%emt 0:00:30]} Nc4 {[%emt 0:14:30]} 21. Qc2 {[%emt 0:00:00]} h6 {[%emt 0:08:30]} 22. g4 {[%emt 0:10:00]} f6 {[%emt 0:10:30]} 23. Bg3 {[%emt 0:08:30]} fxe5 {[%emt 0:00:30]} 24. fxe5 {[%emt 0:01:30]} Qb6 {[%emt 0:03:30]} 25. g5 {[%emt 0:11:30]} Be8 {[%emt 0:02:30]} 26. gxh6 {[%emt 0:10:30]} gxh6 {[%emt 0:03:30]} 27. Ng5 {[%emt 0:01:30]} hxg5 {[%emt 0:08:30]} 28. hxg5 {[%emt 0:00:00]} Rf7 {[%emt 0:00:00]} 29. Qg6+ {[%emt 0:00:00]} Rg7 {[%emt 0:01:00]} 30. Qh6 {[%emt 0:00:30]} Bg6 {[%emt 0:12:15]} 31. Qh8+ {[%emt 0:00:30]} Kf7 {[%emt 0:00:02]} 32. Ref1+ {[%emt 0:00:30]} Bf5 {[%emt 0:00:18]} 33. g6+ {[%emt 0:00:30]} 1-0

[Event "Turkish Second League 2019"]
[Site "Konya"]
[Date "2019.07.26"]
[Round "7"]
[White "Buke, Furkan"]
[Black "Sahutoglu, Mehmet Ibrahim"]
[Result "1-0"]
[ECO "B37"]
[WhiteElo "1959"]
[BlackElo "1898"]
[Annotator "NA"]
[PlyCount "95"]
[EventDate "2019.07.22"]
[EventType "team-tourn"]
[EventCountry "TUR"]
[SourceTitle "playchess.com"]
[Source "ChessBase"]
[SourceQuality "1"]
[TimeControl "5400+30"]

1. e4 {[%emt 0:00:30]} c5 {[%emt 0:00:30]} 2. Nf3 {[%emt 0:00:00]} g6 {[%emt 0:00:00]} 3. d4 {[%emt 0:00:00]} cxd4 {[%emt 0:00:00]} 4. Nxd4 {[%emt 0:04:30]} Bg7 {[%emt 0:03:30]} 5. c4 {[%emt 0:00:30]} Nc6 {[%emt 0:00:30]} 6. Nc2 {[%emt 0:00:30]} Nf6 {[%emt 0:01:30]} 7. Nc3 {[%emt 0:00:30]} O-O {[%emt 0:00:30]} 8. Be2 {[%emt 0:00:00]} d6 {[%emt 0:01:30]} 9. O-O {[%emt 0:00:00]} Be6 {[%emt 0:01:30]} 10. Be3 {[%emt 0:01:30]} Rc8 {[%emt 0:01:30]} 11. f3 {[%emt 0:03:30]} Na5 {[%emt 0:09:30]} 12. b3 {[%emt 0:01:30]} Ng4 {[%emt 0:01:30]} 13. fxg4 {[%emt 0:11:30]} Bxc3 {[%emt 0:00:00]} 14. Rc1 {[%emt 0:01:30]} Nc6 {[%emt 0:02:00]} 15. g5 {[%emt 0:02:30]} Bg7 {[%emt 0:00:30]} 16. Bg4 {[%emt 0:00:30]} Bxg4 {[%emt 0:02:30]} 17. Qxg4 {[%emt 0:00:30]} Qa5 {[%emt 0:00:30]} 18. Rb1 {[%emt 0:20:30]} Qxa2 {[%emt 0:03:30]} 19. Qd1 {[%emt 0:00:30]} Qa5 {[%emt 0:01:30]} 20. Qe2 {[%emt 0:02:30]} a6 {[%emt 0:01:30]} 21. Bd2 {[%emt 0:01:30]} Qb6+ {[%emt 0:02:30]} 22. Be3 {[%emt 0:00:30]} Qc7 {[%emt 0:00:30]} 23. Bf2 {[%emt 0:01:30]} Qa5 {[%emt 0:06:30]} 24. Qg4 {[%emt 0:05:30]} b5 {[%emt 0:04:30]} 25. Ne3 {[%emt 0:01:30]} Ne5 {[%emt 0:00:30]} 26. Qh4 {[%emt 0:00:30]} Qd8 {[%emt 0:14:30]} 27. Nd5 {[%emt 0:01:30]} f6 {[%emt 0:07:30]} 28. gxf6 {[%emt 0:03:30]} exf6 {[%emt 0:01:30]} 29. Qh3 {[%emt 0:00:30]} Nd7 {[%emt 0:05:30]} 30. Qe6+ {[%emt 0:01:30]} Kh8 {[%emt 0:00:00]} 31. Qxd6 {[%emt 0:00:30]} bxc4 {[%emt 0:02:00]} 32. bxc4 {[%emt 0:00:00]} Rxc4 {[%emt 0:00:30]} 33. Qxa6 {[%emt 0:05:00]} Rxe4 {[%emt 0:00:30]} 34. Rb7 {[%emt 0:00:30]} Re5 {[%emt 0:07:31]} 35. Nf4 {[%emt 0:04:30]} Nb8 {[%emt 0:01:24]} 36. Qc4 {[%emt 0:02:30]} Qc8 {[%emt 0:01:18]} 37. Rc7 {[%emt 0:04:30]} Qa6 {[%emt 0:00:04]} 38. Qb4 {[%emt 0:00:43]} g5 {[%emt 0:00:58]} 39. Nh5 {[%emt 0:01:14]} Bh6 {[%emt 0:01:36]} 40. Qb1 {[%emt 0:00:07]} f5 {[%emt 0:02:30]} 41. Bd4 {[%emt 0:00:33]} Qd6 {[%emt 0:00:01]} 42. Qb2 {[%emt 0:01:28]} Nc6 {[%emt 0:02:13]} 43. Rxc6 {[%emt 0:00:55]} Qxc6 {[%emt 0:00:30]} 44. Bxe5+ {[%emt 0:00:30]} Kg8 {[%emt 0:00:00]} 45. Qb3+ {[%emt 0:00:09]} Rf7 {[%emt 0:00:04]} 46. Nf6+ {[%emt 0:00:00]} Kf8 {[%emt 0:00:00]} 47. Qb8+ {[%emt 0:00:17]} Ke7 {[%emt 0:00:53]} 48. Ng8+ {[%emt 0:01:39]} 1-0

[Event "Turkish Second League 2019"]
[Site "Konya"]
[Date "2019.07.26"]
[Round "7"]
[White "Tahaoglu, Ugur Barkin"]
[Black "Caner, Resul"]
[Result "1-0"]
[ECO "D00"]
[WhiteElo "1939"]
[BlackElo "1921"]
[Annotator "NA"]
[PlyCount "73"]
[EventDate "2019.07.22"]
[EventType "team-tourn"]
[EventCountry "TUR"]
[SourceTitle "playchess.com"]
[Source "ChessBase"]
[SourceQuality "1"]
[TimeControl "5400+30"]

1. d4 {[%emt 0:00:30]} d5 {[%emt 0:00:30]} 2. Bf4 {[%emt 0:01:30]} c5 {[%emt 0:00:30]} 3. e3 {[%emt 0:00:30]} Nc6 {[%emt 0:00:00]} 4. c3 {[%emt 0:00:00]} Nf6 {[%emt 0:00:00]} 5. Nd2 {[%emt 0:00:00]} Qb6 {[%emt 0:00:30]} 6. Qb3 {[%emt 0:00:00]} c4 {[%emt 0:00:30]} 7. Qc2 {[%emt 0:00:00]} Nh5 {[%emt 0:02:30]} 8. Bg5 {[%emt 0:01:30]} h6 {[%emt 0:13:30]} 9. Bh4 {[%emt 0:00:00]} e5 {[%emt 0:00:00]} 10. Be2 {[%emt 0:05:00]} Nf6 {[%emt 0:07:00]} 11. dxe5 {[%emt 0:02:30]} Nxe5 {[%emt 0:07:30]} 12. Ngf3 {[%emt 0:01:30]} Ng6 {[%emt 0:00:00]} 13. Bg3 {[%emt 0:00:30]} Bd6 {[%emt 0:00:00]} 14. Bxd6 {[%emt 0:02:30]} Qxd6 {[%emt 0:00:30]} 15. Rd1 {[%emt 0:00:30]} Qc5 {[%emt 0:00:30]} 16. O-O {[%emt 0:00:30]} O-O {[%emt 0:19:30]} 17. Nd4 {[%emt 0:03:30]} Bd7 {[%emt 0:00:30]} 18. Bf3 {[%emt 0:09:30]} Ne5 {[%emt 0:05:30]} 19. Be2 {[%emt 0:04:30]} Rfe8 {[%emt 0:04:30]} 20. N2f3 {[%emt 0:03:30]} Rac8 {[%emt 0:03:30]} 21. Nxe5 {[%emt 0:11:30]} Rxe5 {[%emt 0:07:30]} 22. Bf3 {[%emt 0:00:30]} Ne4 {[%emt 0:00:30]} 23. Bxe4 {[%emt 0:10:30]} dxe4 {[%emt 0:01:30]} 24. Ne2 {[%emt 0:02:30]} Qe7 {[%emt 0:05:30]} 25. Rd4 {[%emt 0:00:30]} b5 {[%emt 0:05:03]} 26. Ng3 {[%emt 0:03:30]} Re8 {[%emt 0:00:13]} 27. Rfd1 {[%emt 0:02:30]} Bc6 {[%emt 0:00:13]} 28. Rd6 {[%emt 0:01:30]} Re6 {[%emt 0:00:53]} 29. R6d4 {[%emt 0:03:30]} Re5 {[%emt 0:00:18]} 30. Qe2 {[%emt 0:02:30]} g6 {[%emt 0:03:52]} 31. Qg4 {[%emt 0:01:30]} h5 {[%emt 0:01:51]} 32. Qh3 {[%emt 0:01:30]} h4 {[%emt 0:07:47]} 33. Ne2 {[%emt 0:00:30]} g5 {[%emt 0:02:39]} 34. Qg4 {[%emt 0:06:30]} f5 {[%emt 0:01:38]} 35. Qh5 {[%emt 0:00:30]} Qg7 {[%emt 0:00:14]} 36. Rd6 {[%emt 0:00:30]} R8e6 {[%emt 0:00:46]} 37. Rxc6 {[%emt 0:00:00]} 1-0

[Event "Turkish Second League 2019"]
[Site "Konya"]
[Date "2019.07.26"]
[Round "7"]
[White "Aksoy, Ayca"]
[Black "Karatiken, Seray"]
[Result "1-0"]
[ECO "D04"]
[WhiteElo "1914"]
[BlackElo "1764"]
[Annotator "NA"]
[PlyCount "71"]
[EventDate "2019.07.22"]
[EventType "team-tourn"]
[EventCountry "TUR"]
[SourceTitle "playchess.com"]
[Source "ChessBase"]
[SourceQuality "1"]
[TimeControl "5400+30"]

1. d4 {[%emt 0:00:30]} d5 {[%emt 0:00:30]} 2. Nf3 {[%emt 0:00:00]} c6 {[%emt 0:00:30]} 3. e3 {[%emt 0:07:00]} Nf6 {[%emt 0:02:30]} 4. Be2 {[%emt 0:00:30]} e6 {[%emt 0:01:30]} 5. O-O {[%emt 0:01:30]} Bd6 {[%emt 0:00:00]} 6. b3 {[%emt 0:00:30]} O-O {[%emt 0:05:00]} 7. Bb2 {[%emt 0:00:30]} b6 {[%emt 0:02:30]} 8. Nbd2 {[%emt 0:02:30]} Bb7 {[%emt 0:04:30]} 9. c4 {[%emt 0:05:30]} Nbd7 {[%emt 0:09:30]} 10. Rc1 {[%emt 0:10:30]} Rc8 {[%emt 0:03:30]} 11. Ne5 {[%emt 0:06:30]} c5 {[%emt 0:08:30]} 12. f4 {[%emt 0:06:30]} cxd4 {[%emt 0:20:30]} 13. exd4 {[%emt 0:01:30]} Bb4 {[%emt 0:01:30]} 14. Bd3 {[%emt 0:15:30]} Qe7 {[%emt 0:04:30]} 15. Qe2 {[%emt 0:03:30]} a5 {[%emt 0:08:30]} 16. Bc3 {[%emt 0:05:30]} Ba3 {[%emt 0:06:53]} 17. Rce1 {[%emt 0:00:30]} Nb8 {[%emt 0:02:17]} 18. f5 {[%emt 0:01:30]} Na6 {[%emt 0:11:43]} 19. Ng4 {[%emt 0:04:30]} Nc7 {[%emt 0:03:36]} 20. Nb1 {[%emt 0:10:57]} Bb4 {[%emt 0:00:49]} 21. Nxf6+ {[%emt 0:04:29]} Qxf6 {[%emt 0:00:17]} 22. Qg4 {[%emt 0:00:44]} Bxc3 {[%emt 0:01:13]} 23. Nxc3 {[%emt 0:00:02]} dxc4 {[%emt 0:00:11]} 24. fxe6 {[%emt 0:02:00]} Qh6 {[%emt 0:00:51]} 25. exf7+ {[%emt 0:03:29]} Kh8 {[%emt 0:00:14]} 26. bxc4 {[%emt 0:00:54]} Qd2 {[%emt 0:00:42]} 27. Qh3 {[%emt 0:01:15]} h6 {[%emt 0:00:30]} 28. Ne4 {[%emt 0:00:31]} Bxe4 {[%emt 0:00:33]} 29. Rxe4 {[%emt 0:00:37]} Rcd8 {[%emt 0:00:25]} 30. Ref4 {[%emt 0:00:57]} Ne6 {[%emt 0:00:39]} 31. R4f2 {[%emt 0:00:14]} Qc3 {[%emt 0:00:27]} 32. d5 {[%emt 0:02:08]} Ng5 {[%emt 0:00:15]} 33. Qe3 {[%emt 0:00:03]} Qb4 {[%emt 0:00:49]} 34. h4 {[%emt 0:00:25]} Nxf7 {[%emt 0:00:31]} 35. Qe4 {[%emt 0:01:01]} Ng5 {[%emt 0:00:53]} 36. hxg5 {[%emt 0:00:04]} 1-0